[Event "Romanian GP Final KO 2023"]
[Site "Alba Iulia"]
[Date "2023.12.05"]
[Round "1.2"]
[White "Nanu, Costica-Ciprian"]
[Black "Petkov, Momchil"]
[Result "1/2-1/2"]
[ECO "A13"]
[WhiteElo "2524"]
[BlackElo "2499"]
[Annotator "RC"]
[PlyCount "139"]
[EventDate "2023.12.04"]
[EventType "k.o."]
[EventCountry "ROU"]
[SourceTitle "playchess.com"]
[Source "ChessBase"]
[SourceQuality "1"]
[TimeControl "900+5"]

1. c4 {[%emt 0:00:05]} e6 {[%emt 0:00:05]} 2. Nf3 {[%emt 0:00:06]} Nf6 {[%emt 0:00:02]} 3. b3 {[%emt 0:00:09]} d5 {[%emt 0:00:02]} 4. Bb2 {[%emt 0:00:09]} Bd6 {[%emt 0:00:02]} 5. e3 {[%emt 0:00:14]} O-O {[%emt 0:00:03]} 6. Nc3 {[%emt 0:00:01]} Nc6 {[%emt 0:00:01]} 7. Be2 {[%emt 0:00:55]} dxc4 {[%emt 0:00:09]} 8. bxc4 {[%emt 0:00:03]} e5 {[%emt 0:00:02]} 9. d3 {[%emt 0:00:21]} Bf5 {[%emt 0:00:10]} 10. O-O {[%emt 0:00:08]} Re8 {[%emt 0:00:49]} 11. Nd5 {[%emt 0:00:29]} Nd7 {[%emt 0:01:38]} 12. h3 {[%emt 0:00:54]} e4 {[%emt 0:00:50]} 13. dxe4 {[%emt 0:00:19]} Bxe4 {[%emt 0:00:04]} 14. Nd2 {[%emt 0:00:30]} Bf5 {[%emt 0:01:31]} 15. Nb3 {[%emt 0:01:33]} Qg5 {[%emt 0:01:42]} 16. Bg4 {[%emt 0:02:00]} Bxg4 {[%emt 0:00:57]} 17. hxg4 {[%emt 0:00:12]} Nb6 {[%emt 0:01:08]} 18. f4 {[%emt 0:02:06]} Qh4 {[%emt 0:00:01]} 19. c5 {[%emt 0:00:20]} Nxd5 {[%emt 0:00:30]} 20. Qxd5 {[%emt 0:00:02]} Bf8 {[%emt 0:00:32]} 21. Qf3 {[%emt 0:00:22]} Qe7 {[%emt 0:01:43]} 22. Rfe1 {[%emt 0:00:02]} Qe4 {[%emt 0:00:32]} 23. Rad1 {[%emt 0:00:07]} a5 {[%emt 0:00:34]} 24. Ba3 {[%emt 0:01:41]} Qa4 {[%emt 0:00:15]} 25. Bc1 {[%emt 0:00:29]} Qxa2 {[%emt 0:00:04]} 26. Nd4 {[%emt 0:00:37]} Nxd4 {[%emt 0:00:26]} 27. exd4 {[%emt 0:00:09]} c6 {[%emt 0:00:04]} 28. f5 {[%emt 0:00:24]} Qc4 {[%emt 0:00:05]} 29. Bb2 {[%emt 0:01:14]} a4 {[%emt 0:00:02]} 30. g5 {[%emt 0:00:47]} Qc2 {[%emt 0:02:46]} 31. Ba3 {[%emt 0:00:17]} Rad8 {[%emt 0:00:27]} 32. Rxe8 {[%emt 0:00:31]} Rxe8 {[%emt 0:00:01]} 33. d5 {[%emt 0:00:01]} Bxc5+ {[%emt 0:00:04]} 34. Bxc5 {[%emt 0:00:04]} Qxc5+ {[%emt 0:00:01]} 35. Kh2 {[%emt 0:00:05]} cxd5 {[%emt 0:00:04]} 36. Rxd5 {[%emt 0:00:05]} Qc7+ {[%emt 0:00:02]} 37. g3 {[%emt 0:00:12]} Qe7 {[%emt 0:00:11]} 38. f6 {[%emt 0:00:22]} Qe2+ {[%emt 0:00:03]} 39. Qxe2 {[%emt 0:00:01]} Rxe2+ {[%emt 0:00:38]} 40. Kh3 gxf6 {[%emt 0:00:00]} 41. gxf6 {[%emt 0:00:01]} h6 {[%emt 0:00:00]} 42. Rd8+ {[%emt 0:00:04]} Kh7 {[%emt 0:00:00]} 43. Rd7 {[%emt 0:00:03]} Kg6 {[%emt 0:00:00]} 44. Rxb7 {[%emt 0:00:01]} Kxf6 {[%emt 0:00:00]} 45. Rb6+ {[%emt 0:00:01]} Kg5 {[%emt 0:00:05]} 46. Ra6 {[%emt 0:00:09]} Re4 {[%emt 0:00:03]} 47. Ra5+ {[%emt 0:00:09]} f5 {[%emt 0:00:06]} 48. Ra8 {[%emt 0:00:04]} Rb4 {[%emt 0:00:04]} 49. Rg8+ {[%emt 0:00:04]} Kf6 {[%emt 0:00:01]} 50. Rh8 {[%emt 0:00:02]} Kg6 {[%emt 0:00:06]} 51. Rg8+ {[%emt 0:00:04]} Kf6 {[%emt 0:00:02]} 52. Rh8 {[%emt 0:00:01]} Ke5 {[%emt 0:00:07]} 53. Rxh6 {[%emt 0:00:04]} Kd4 {[%emt 0:00:01]} 54. Rf6 {[%emt 0:00:12]} Kc3 {[%emt 0:00:20]} 55. Rxf5 {[%emt 0:00:03]} a3 {[%emt 0:00:25]} 56. Rf3+ {[%emt 0:00:13]} Kb2 {[%emt 0:00:00]} 57. Rf2+ {[%emt 0:00:05]} Kb3 {[%emt 0:00:00]} 58. Rf3+ {[%emt 0:00:08]} Ka4 {[%emt 0:00:15]} 59. Rf2 Rc4 {[%emt 0:00:00]} 60. g4 {[%emt 0:00:19]} Kb3 {[%emt 0:00:00]} 61. Kh4 {[%emt 0:00:08]} a2 {[%emt 0:00:04]} 62. Rf1 {[%emt 0:00:03]} Kb2 {[%emt 0:00:01]} 63. Kh5 {[%emt 0:00:05]} Rc1 {[%emt 0:00:03]} 64. Rf2+ {[%emt 0:00:01]} Rc2 {[%emt 0:00:01]} 65. Rf1 {[%emt 0:00:00]} a1=Q {[%emt 0:00:11]} 66. Rxa1 {[%emt 0:00:01]} Kxa1 {[%emt 0:00:01]} 67. g5 {[%emt 0:00:03]} Kb2 {[%emt 0:00:02]} 68. Kg6 {[%emt 0:00:09]} Rg2 {[%emt 0:00:02]} 69. Kf6 {[%emt 0:00:02]} Rxg5 {[%emt 0:00:01]} 70. Kxg5 {[%emt 0:00:30]} 1/2-1/2

[Event "Romanian GP Final KO 2023"]
[Site "Alba Iulia"]
[Date "2023.12.05"]
[Round "1.2"]
[White "Ghimpu, Samuel-Timotei"]
[Black "Ciolacu, Alessia-Mihaela"]
[Result "1-0"]
[ECO "B90"]
[WhiteElo "2472"]
[BlackElo "2175"]
[Annotator "RC"]
[PlyCount "131"]
[EventDate "2023.12.04"]
[EventType "k.o."]
[EventCountry "ROU"]
[SourceTitle "playchess.com"]
[Source "ChessBase"]
[SourceQuality "1"]
[TimeControl "900+5"]

1. e4 {[%emt 0:00:03]} c5 {[%emt 0:00:01]} 2. Nf3 {[%emt 0:00:01]} d6 {[%emt 0:00:01]} 3. d4 {[%emt 0:00:51]} cxd4 {[%emt 0:00:03]} 4. Nxd4 {[%emt 0:00:01]} Nf6 {[%emt 0:00:03]} 5. Nc3 {[%emt 0:00:01]} a6 {[%emt 0:00:02]} 6. a4 {[%emt 0:00:01]} e5 {[%emt 0:00:28]} 7. Nf3 {[%emt 0:00:02]} Be6 {[%emt 0:00:29]} 8. Nd2 {[%emt 0:00:05]} Qc7 {[%emt 0:00:36]} 9. Be2 {[%emt 0:00:40]} Be7 {[%emt 0:00:38]} 10. O-O {[%emt 0:00:17]} Nc6 {[%emt 0:00:27]} 11. Bc4 {[%emt 0:00:42]} Nb4 {[%emt 0:00:46]} 12. Bxe6 {[%emt 0:00:14]} fxe6 {[%emt 0:00:01]} 13. Nf3 {[%emt 0:00:30]} O-O {[%emt 0:00:17]} 14. Bg5 {[%emt 0:00:18]} Rad8 {[%emt 0:00:31]} 15. Bxf6 {[%emt 0:03:10]} Bxf6 {[%emt 0:00:02]} 16. Qe2 {[%emt 0:01:09]} d5 {[%emt 0:01:06]} 17. Rfc1 {[%emt 0:00:26]} Rc8 {[%emt 0:02:56]} 18. h3 {[%emt 0:01:43]} Qc4 {[%emt 0:01:11]} 19. Qxc4 {[%emt 0:03:30]} Rxc4 {[%emt 0:00:02]} 20. Ra3 {[%emt 0:00:39]} Rfc8 {[%emt 0:02:33]} 21. Rb3 {[%emt 0:00:21]} a5 {[%emt 0:01:19]} 22. Ne1 {[%emt 0:00:33]} R8c7 {[%emt 0:00:40]} 23. Nb5 {[%emt 0:00:20]} R7c6 {[%emt 0:00:43]} 24. exd5 {[%emt 0:00:14]} exd5 {[%emt 0:00:03]} 25. c3 {[%emt 0:00:04]} Na6 {[%emt 0:00:25]} 26. Na7 {[%emt 0:00:03]} Nc5 {[%emt 0:00:21]} 27. Rb5 {[%emt 0:00:30]} Ra6 {[%emt 0:00:10]} 28. Nc8 {[%emt 0:00:40]} Nxa4 {[%emt 0:00:13]} 29. b3 {[%emt 0:00:02]} Rxc3 {[%emt 0:01:06]} 30. Rxc3 {[%emt 0:00:17]} Nxc3 {[%emt 0:00:02]} 31. Rxb7 {[%emt 0:00:01]} Rc6 {[%emt 0:00:11]} 32. Ne7+ {[%emt 0:00:08]} Bxe7 {[%emt 0:00:02]} 33. Rxe7 {[%emt 0:00:01]} e4 {[%emt 0:00:09]} 34. f3 {[%emt 0:00:03]} Kf8 {[%emt 0:00:09]} 35. Ra7 {[%emt 0:00:05]} e3 {[%emt 0:00:07]} 36. Rxa5 {[%emt 0:00:11]} d4 {[%emt 0:00:00]} 37. Re5 {[%emt 0:00:08]} Rd6 {[%emt 0:00:04]} 38. b4 {[%emt 0:00:05]} Rb6 {[%emt 0:00:02]} 39. Nc2 {[%emt 0:00:02]} d3 {[%emt 0:00:03]} 40. Nxe3 {[%emt 0:00:02]} Rxb4 {[%emt 0:00:04]} 41. Rc5 {[%emt 0:00:02]} Nb1 {[%emt 0:00:17]} 42. Rd5 {[%emt 0:00:08]} d2 {[%emt 0:00:02]} 43. Kf2 {[%emt 0:00:08]} Rb2 {[%emt 0:00:03]} 44. Nd1 {[%emt 0:00:02]} Rc2 {[%emt 0:00:03]} 45. Ke2 {[%emt 0:00:08]} Ke7 {[%emt 0:00:02]} 46. Rd3 {[%emt 0:00:07]} Ke6 {[%emt 0:00:09]} 47. f4 {[%emt 0:00:05]} Kf5 {[%emt 0:00:01]} 48. g3 {[%emt 0:00:02]} Ke4 {[%emt 0:00:04]} 49. Nf2+ {[%emt 0:00:01]} Kf5 {[%emt 0:00:01]} 50. Nd1 {[%emt 0:00:01]} Ke6 {[%emt 0:00:03]} 51. g4 {[%emt 0:00:02]} Kf6 {[%emt 0:00:19]} 52. Rb3 {[%emt 0:00:05]} Rc1 {[%emt 0:00:06]} 53. Rb6+ {[%emt 0:00:08]} Ke7 {[%emt 0:00:02]} 54. Rb7+ {[%emt 0:00:01]} Kf6 {[%emt 0:00:04]} 55. Rb6+ {[%emt 0:00:02]} Ke7 {[%emt 0:00:02]} 56. Rb7+ {[%emt 0:00:01]} Kd6 {[%emt 0:00:07]} 57. Rxg7 {[%emt 0:00:02]} Rc4 {[%emt 0:00:09]} 58. Rb7 {[%emt 0:00:07]} Rc1 {[%emt 0:00:08]} 59. Rxh7 {[%emt 0:00:03]} Kd5 {[%emt 0:00:05]} 60. Rb7 {[%emt 0:00:08]} Kc4 {[%emt 0:00:06]} 61. f5 {[%emt 0:00:13]} Nc3+ {[%emt 0:00:03]} 62. Nxc3 {[%emt 0:00:03]} Kxc3 {[%emt 0:00:03]} 63. Rc7+ {[%emt 0:00:02]} Kb2 {[%emt 0:00:02]} 64. Rd7 {[%emt 0:00:11]} Rh1 {[%emt 0:00:12]} 65. Rxd2+ {[%emt 0:00:04]} Kc3 {[%emt 0:00:03]} 66. Rd3+ {[%emt 0:00:00]} 1-0

[Event "Romanian GP Final KO 2023"]
[Site "Alba Iulia"]
[Date "2023.12.05"]
[Round "1.2"]
[White "Toma, Radu-Cristian"]
[Black "Obada, Ema"]
[Result "1-0"]
[ECO "D32"]
[WhiteElo "2387"]
[BlackElo "2035"]
[Annotator "RC"]
[PlyCount "83"]
[EventDate "2023.12.04"]
[EventType "k.o."]
[EventCountry "ROU"]
[SourceTitle "playchess.com"]
[Source "ChessBase"]
[SourceQuality "1"]
[TimeControl "900+5"]

1. Nf3 {[%emt 0:00:03]} Nf6 {[%emt 0:00:01]} 2. c4 {[%emt 0:00:04]} e6 {[%emt 0:00:02]} 3. Nc3 {[%emt 0:00:13]} d5 {[%emt 0:00:02]} 4. e3 {[%emt 0:00:01]} c5 {[%emt 0:00:08]} 5. cxd5 {[%emt 0:00:06]} exd5 {[%emt 0:00:02]} 6. d4 {[%emt 0:00:11]} Nc6 {[%emt 0:00:45]} 7. h3 {[%emt 0:00:12]} Be7 {[%emt 0:00:26]} 8. Bb5 {[%emt 0:00:13]} O-O {[%emt 0:00:31]} 9. O-O {[%emt 0:00:06]} a6 {[%emt 0:00:13]} 10. Bxc6 {[%emt 0:00:03]} bxc6 {[%emt 0:00:02]} 11. dxc5 {[%emt 0:00:02]} Bxc5 {[%emt 0:00:16]} 12. Qc2 {[%emt 0:00:08]} Bd6 {[%emt 0:01:29]} 13. Rd1 {[%emt 0:00:17]} Qe7 {[%emt 0:00:27]} 14. b3 {[%emt 0:00:25]} Bb7 {[%emt 0:00:52]} 15. Bb2 {[%emt 0:02:11]} c5 {[%emt 0:00:56]} 16. Qf5 {[%emt 0:00:33]} h6 {[%emt 0:01:36]} 17. Na4 {[%emt 0:01:08]} Qe6 {[%emt 0:02:49]} 18. Qxe6 {[%emt 0:01:15]} fxe6 {[%emt 0:00:02]} 19. Be5 {[%emt 0:00:12]} Be7 {[%emt 0:00:30]} 20. Nb6 {[%emt 0:00:34]} Rae8 {[%emt 0:00:27]} 21. Rac1 {[%emt 0:01:16]} Ne4 {[%emt 0:00:15]} 22. Rc2 {[%emt 0:00:12]} Rf7 {[%emt 0:01:16]} 23. Ne1 {[%emt 0:00:19]} Bc6 {[%emt 0:02:30]} 24. f3 {[%emt 0:01:26]} Nf6 {[%emt 0:01:11]} 25. Nd3 {[%emt 0:00:08]} Bd8 {[%emt 0:00:12]} 26. Nc8 {[%emt 0:00:06]} c4 {[%emt 0:00:06]} 27. Nd6 {[%emt 0:00:16]} cxd3 {[%emt 0:00:02]} 28. Rxc6 {[%emt 0:00:01]} Rfe7 {[%emt 0:00:09]} 29. Nxe8 {[%emt 0:00:15]} Rxe8 {[%emt 0:00:05]} 30. Rc8 {[%emt 0:00:58]} Bb6 {[%emt 0:00:05]} 31. Rxe8+ {[%emt 0:00:03]} Nxe8 {[%emt 0:00:01]} 32. Rxd3 {[%emt 0:00:04]} Kf7 {[%emt 0:00:04]} 33. Kf2 {[%emt 0:00:06]} Nf6 {[%emt 0:00:08]} 34. Bxf6 {[%emt 0:00:03]} gxf6 {[%emt 0:00:03]} 35. Rc3 {[%emt 0:00:09]} d4 {[%emt 0:00:02]} 36. Rc6 {[%emt 0:00:02]} dxe3+ {[%emt 0:00:02]} 37. Ke2 {[%emt 0:00:01]} Bd4 {[%emt 0:00:01]} 38. Rxa6 {[%emt 0:00:03]} f5 {[%emt 0:00:04]} 39. Rc6 {[%emt 0:00:08]} f4 {[%emt 0:00:04]} 40. a4 {[%emt 0:00:06]} Ke7 {[%emt 0:00:01]} 41. Rc4 {[%emt 0:00:04]} e5 {[%emt 0:00:05]} 42. Rc6 {[%emt 0:00:02]} 1-0

[Event "Romanian GP Final KO 2023"]
[Site "Alba Iulia"]
[Date "2023.12.05"]
[Round "1.2"]
[White "Secheres, Adrian-Simion"]
[Black "Serban, Cristian-Stefan"]
[Result "1-0"]
[ECO "D31"]
[WhiteElo "2381"]
[BlackElo "2332"]
[Annotator "RC"]
[PlyCount "45"]
[EventDate "2023.12.04"]
[EventType "k.o."]
[EventCountry "ROU"]
[SourceTitle "playchess.com"]
[Source "ChessBase"]
[SourceQuality "1"]
[TimeControl "900+5"]

1. d4 {[%emt 0:00:03]} d5 {[%emt 0:00:01]} 2. c4 {[%emt 0:00:04]} e6 {[%emt 0:00:01]} 3. Nc3 {[%emt 0:00:06]} c6 {[%emt 0:00:01]} 4. Nf3 {[%emt 0:00:08]} dxc4 {[%emt 0:00:02]} 5. e4 {[%emt 0:00:03]} b5 {[%emt 0:00:03]} 6. Be2 {[%emt 0:00:02]} Nf6 {[%emt 0:00:39]} 7. O-O {[%emt 0:00:04]} Bb7 {[%emt 0:00:14]} 8. Rb1 {[%emt 0:00:04]} Be7 {[%emt 0:00:40]} 9. b3 {[%emt 0:01:25]} cxb3 {[%emt 0:00:02]} 10. Rxb3 {[%emt 0:00:04]} a6 {[%emt 0:00:15]} 11. e5 {[%emt 0:00:38]} Nd5 {[%emt 0:00:04]} 12. Ne4 {[%emt 0:00:01]} O-O {[%emt 0:01:05]} 13. Bd3 {[%emt 0:01:31]} Nd7 {[%emt 0:00:45]} 14. Nfg5 {[%emt 0:01:38]} g6 {[%emt 0:02:39]} 15. Qg4 {[%emt 0:01:05]} h5 {[%emt 0:03:11]} 16. Qg3 {[%emt 0:00:21]} Nc7 {[%emt 0:00:48]} 17. Nd6 {[%emt 0:01:42]} Bxg5 {[%emt 0:02:14]} 18. Bxg5 {[%emt 0:00:49]} Qb8 {[%emt 0:00:06]} 19. Bh6 {[%emt 0:00:40]} Kh7 {[%emt 0:01:10]} 20. Bxf8 {[%emt 0:00:05]} Nxf8 {[%emt 0:00:01]} 21. Nxf7 {[%emt 0:00:05]} Qe8 {[%emt 0:00:02]} 22. Nd6 {[%emt 0:00:05]} Qb8 {[%emt 0:00:04]} 23. Be4 {[%emt 0:00:08]} 1-0

[Event "Romanian GP Final KO 2023"]
[Site "Alba Iulia"]
[Date "2023.12.05"]
[Round "1.3"]
[White "Chigaev, Maksim"]
[Black "Kantor, Gergely"]
[Result "1-0"]
[ECO "C54"]
[WhiteElo "2626"]
[BlackElo "2527"]
[Annotator "TA"]
[PlyCount "66"]
[EventDate "2023.12.04"]
[EventType "k.o."]
[EventCountry "ROU"]
[SourceTitle "playchess.com"]
[Source "ChessBase"]
[SourceQuality "1"]
[TimeControl "900+5"]

{[%evp 12,66,13,12,15,0,10,4,3,0,0,0,10,-22,0,-17,-19,-17,-20,-9,0,-23,0,0,4,-37,-21,-81,14,-11,-8,-10,-12,-13,-7,-10,9,-14,50,8,74,82,66,35,286,281,296,279,279,273,433,384,424,422,561,475,1574]} 1. e4 {[%emt 0:10:12]} e5 {[%emt 0:11:11]} 2. Nf3 {[%emt 0:00:07]} Nc6 {[%emt 0:00:06]} 3. Bc4 {[%emt 0:00:06]} Nf6 {[%emt 0:00:06]} 4. d3 {[%emt 0:00:06]} Bc5 {[%emt 0:00:06]} 5. c3 {[%emt 0:00:06]} O-O {[%emt 0:00:10]} 6. O-O {[%emt 0:00:19]} d6 {[%emt 0:00:06]} 7. h3 {[%emt 0:00:17]} a5 {[%emt 0:00:08] is now more promising than 7...h6. C54: Giuoco Piano: 4 c3 Nf6, main lines with 5 d4 and 5 d3.} 8. Bb5 $5 {[%emt 0:00:18][%mdl 4] A promising side line.} Ba7 {[%emt 0:00:20]} 9. Re1 {[%emt 0:00:10]} Ne7 {[%emt 0:00:11] The position is equal.} 10. Nbd2 {[%emt 0:00:12][%cal Bb1d2,Bd2f1,Bf1g3][%mdl 32]} c6 {[%emt 0:00:12]} 11. Ba4 {[%emt 0:00:06]} Ng6 {[%emt 0:00:06][%cal Oc8h3]} 12. Nf1 {[%emt 0:00:07]} d5 {[%emt 0:00:14]} 13. exd5 {[%emt 0:00:22]} Nxd5 {[%emt 0:00:07] [#]} 14. d4 $146 {[%emt 0:00:07]} ({Predecessor:} 14. Ng3 Re8 15. Bb3 h6 16. d4 exd4 17. Rxe8+ Qxe8 18. Bxd5 cxd5 19. Nxd4 Bd7 20. Be3 {½-½ Puranik,A (2549)-Ganguly,S (2646) Wch Rapid Almaty 2022 (6)}) 14... exd4 {[%emt 0:00:12]} 15. Nxd4 {[%emt 0:00:06]} Qf6 {[%emt 0:00:26]} 16. Ng3 {[%emt 0:00:18]} Ngf4 {[%emt 0:00:15]} 17. Bc2 {[%emt 0:00:29]} Bd7 {[%emt 0:00:37]} 18. Be3 {[%emt 0:00:59]} Rae8 {[%emt 0:00:17]} 19. Be4 {[%emt 0:00:50]} (19. Qd2 $11) 19... g6 {[%emt 0:00:39]} (19... Nxe3 $17 20. Rxe3 g6) 20. Bxd5 {[%emt 0:00:25]} Nxd5 {[%emt 0:00:11]} 21. Bh6 {[%emt 0:00:06]} Rxe1+ {[%emt 0:00:06]} 22. Qxe1 {[%emt 0:00:06]} Re8 {[%emt 0:00:07]} 23. Qd2 {[%emt 0:00:05]} Qe5 {[%emt 0:00:20]} 24. Kh1 {[%emt 0:00:14]} (24. Rd1 {simplifies} b5 25. Nf1 Bxd4 26. Qxd4 Qxd4 27. Rxd4 Be6 28. Nd2) 24... Nf6 {[%emt 0:00:07]} (24... Bxd4 $11 25. cxd4 Qe7) 25. Rd1 {[%emt 0:00:19][%cal Ba1d1,Bd1d6,Bd6f6][%mdl 32]} Bc8 {[%emt 0:00:11]} (25... Qc5 $11) 26. Nf3 $16 {[%emt 0:00:08]} Qd5 {[%emt 0:00:07]} 27. Qc1 {[%emt 0:00:06]} (27. Qc2 $5 {[%cal Rd1d5]} Qe6 28. c4 $14) 27... Qxa2 {[%emt 0:00:08][%mdl 8192] This move loses the game for Black.} (27... Qe6 $1 $14) 28. Qf4 $18 {[%emt 0:00:08]} Qe6 {[%emt 0:00:29]} (28... Bxf2 {gets mated.} 29. Qxf6) 29. Rd6 {[%emt 0:00:09] Black is weak on the dark squares} Qe7 {[%emt 0:00:08] [#] ...Nd5 is the strong threat.} 30. Rxf6 {[%emt 0:00:08]} Bb8 {[%emt 0:00:12]} (30... Bxf2 {was worth a try.} 31. Rd6 f5) 31. Qd4 {[%emt 0:00:12]} c5 {[%emt 0:00:05]} 32. Qh4 {[%emt 0:00:06]} Bc7 {[%emt 0:00:00]} 33. Bg5 {[%emt 0:00:09][%cal Of6g6] [#] Black must now prevent Rxg6+!} Be5 {Weighted Error Value: White=0.16 (very precise) /Black=0.45} (33... Bxg3 $142 34. fxg3 Qf8) 1-0

[Event "Romanian GP Final KO 2023"]
[Site "Alba Iulia"]
[Date "2023.12.05"]
[Round "1.3"]
[White "Lupulescu, Constantin"]
[Black "David, Alexandru-Vasile"]
[Result "0-1"]
[ECO "B33"]
[WhiteElo "2581"]
[BlackElo "2372"]
[Annotator "TA"]
[PlyCount "58"]
[EventDate "2023.12.04"]
[EventType "k.o."]
[EventCountry "ROU"]
[SourceTitle "playchess.com"]
[Source "ChessBase"]
[SourceQuality "1"]
[TimeControl "900+5"]

{[%evp 16,58,58,0,6,12,51,-6,-6,-9,24,17,21,30,25,15,20,21,44,34,24,28,33,14,43,0,1,0,0,0,6,0,0,-48,-25,-285,-300,-281,-250,-308,-334,-372,-349,-788,-786]} 1. e4 {[%emt 0:10:10]} c5 {[%emt 0:11:12]} 2. Nf3 {[%emt 0:00:07]} Nc6 {[%emt 0:00:06]} 3. d4 {[%emt 0:00:14]} cxd4 {[%emt 0:00:07]} 4. Nxd4 {[%emt 0:00:07]} Nf6 {[%emt 0:00:05]} 5. Nc3 {[%emt 0:00:06]} e5 {[%emt 0:00:06]} 6. Ndb5 {[%emt 0:00:07]} d6 {[%emt 0:00:06]} 7. Bg5 {[%emt 0:00:13]} a6 {[%emt 0:00:06]} 8. Na3 {[%emt 0:00:11]} b5 {[%emt 0:00:06]} 9. Nab1 {[%emt 0:00:09]} (9. Bxf6 $1 $14 gxf6 10. Nd5) 9... Rb8 {[%emt 0:00:11] B33: Sicilian: Pelikan and Sveshnikov Variations.} 10. a4 {[%emt 0:00:21] [#] aiming for Bxf6.} bxa4 {[%emt 0:00:07] [#]} (10... b4 $5 {[%cal Rb4c3]} 11. Nd5 Be7 $11) 11. Qc1 $146 {[%emt 0:00:34]} ({White should play} 11. Rxa4 $14 Rxb2 12. Nd5) ({Predecessor:} 11. Nxa4 Be7 12. Bxf6 Bxf6 13. Nbc3 Nb4 14. Bc4 Qc7 15. b3 Be6 16. Nd5 Nxd5 17. exd5 {0-1 Varga,Z (2508)-Parligras,M (2511) ROM-chT div-A 2006 (3)}) 11... Be7 {[%emt 0:00:44] The position is equal.} 12. Rxa4 {[%emt 0:00:11]} Qb6 {[%emt 0:00:06]} 13. Bxf6 {[%emt 0:00:34]} Bxf6 {[%emt 0:00:09]} 14. b3 {[%emt 0:00:13]} Nb4 {[%emt 0:00:17]} 15. Bc4 {[%emt 0:00:08]} O-O {[%emt 0:00:09]} 16. O-O {[%emt 0:00:08]} a5 {[%emt 0:00:15]} 17. Nd5 {[%emt 0:00:11]} Nxd5 {[%emt 0:00:07]} 18. Bxd5 {[%emt 0:00:06]} Bd7 {[%emt 0:00:12]} 19. Ra1 {[%emt 0:00:29]} Rfc8 {[%emt 0:00:11]} 20. Qd2 {[%emt 0:00:16]} Be6 {[%emt 0:00:25]} 21. Bxe6 {[%emt 0:00:18]} fxe6 {[%emt 0:00:06]} 22. Na3 {[%emt 0:00:07]} Qd4 {[%emt 0:00:29]} 23. Qe2 {[%emt 0:00:05]} d5 {[%emt 0:00:11]} 24. Rfd1 {[%emt 0:00:08] White is weak on the dark squares} (24. Ra2 $11 {was preferrable.}) 24... Qc5 $15 {[%emt 0:00:06]} (24... Qxe4 25. Qxe4 dxe4 26. Nc4 $16) 25. c4 $2 {[%emt 0:00:28][%mdl 8192] Now White is beyond hope.} (25. Qg4 $11 Re8 26. Qh3) 25... Rxb3 $19 {[%emt 0:00:14]} 26. Qg4 {[%emt 0:00:26] [#]} Re8 {[%emt 0:00:11]} (26... Rxa3 27. Rxa3 (27. cxd5 $2 Rxa1 28. Rxa1 Qc1+ 29. Qd1 Qxd1+ {[%mdl 64] Remove Defender} 30. Rxd1 exd5 $19) 27... Kh8 28. Qxe6 $18) (26... dxc4 27. Qxe6+ Kh8 28. Rd5 $17) 27. Nb5 {[%emt 0:00:06][%cal Re4d5]} Rb2 {[%emt 0:00:19]} ({Don't take} 27... Qxc4 28. Nd6 Qc6 29. Nxe8 Qxe8 30. exd5 $18 (30. Rxa5 Rb4 $16)) 28. Qf3 {[%emt 0:00:38]} dxc4 {[%emt 0:00:10]} ({Don't go for} 28... dxe4 $2 29. Qe3 Qxe3 30. fxe3 $19) 29. Nd6 {[%emt 0:00:07]} (29. Nc3 Rb3 30. Qh3) 29... Rd8 {[%emt 0:00:07] Weighted Error Value: White=0.57/Black=0.10 (very precise)} 0-1

[Event "Romanian GP Final KO 2023"]
[Site "Alba Iulia"]
[Date "2023.12.05"]
[Round "1.3"]
[White "Gavrilescu, David"]
[Black "Ardelean, George-Catalin"]
[Result "1-0"]
[ECO "B30"]
[WhiteElo "2534"]
[BlackElo "2433"]
[Annotator "TA"]
[PlyCount "39"]
[EventDate "2023.12.04"]
[EventType "k.o."]
[EventCountry "ROU"]
[SourceTitle "playchess.com"]
[Source "ChessBase"]
[SourceQuality "1"]
[TimeControl "900+5"]

{[%evp 9,39,25,41,30,99,105,90,92,139,127,679,694,833,833,878,881,871,869,856,787,893,881,958,963,896,906,1021,1014,29991,29992,29994,866]} 1. e4 {[%emt 0:10:11]} c5 {[%emt 0:11:11]} 2. Nf3 {[%emt 0:00:06]} Nc6 {[%emt 0:00:05]} 3. Bb5 {[%emt 0:00:06]} e5 {[%emt 0:00:06]} 4. O-O {[%emt 0:00:07]} Bd6 {[%emt 0:00:05]} 5. d4 {[%emt 0:00:06]} Nxd4 {[%emt 0:00:12]} 6. Bc4 {[%emt 0:00:06] [#] Strongly threatening Ng5. B30: Sicilian: 2...Nc6 3 Bb5, lines without ...g6.} Qf6 $146 {[%emt 0:00:23] [#]} (6... Bc7 $11 {remains equal.}) ({Predecessor:} 6... Bc7 7. Ng5 Nh6 8. Nc3 O-O 9. h3 Kh8 10. a4 f6 11. Nf3 Ng8 12. Nd5 Ne7 {1-0 Caruana,F (2764)-Nakamura,H (2775) Chessable Masters Div 1 Win rapid 2023 (3.3)}) 7. Ng5 $1 $16 {[%emt 0:00:30][%mdl 1024] White has strong compensation.} Nh6 {[%emt 0:00:11]} 8. Nc3 {[%emt 0:00:22] White is better.} O-O {[%emt 0:00:16]} (8... b5 $142) 9. Nd5 {[%emt 0:00:07]} Qg6 {[%emt 0:00:17][%mdl 8192]} (9... Qd8 $16) 10. h4 $18 {[%emt 0:00:22][%cal Bh2h4,Bh4h5][%mdl 32]} Ne6 {[%emt 0:01:38]} 11. h5 {[%emt 0:00:06]} Qxg5 {[%emt 0:00:07]} 12. Bxg5 {[%emt 0:00:07]} Nxg5 {[%emt 0:00:06] [#]} 13. Nf6+ $1 {[%emt 0:00:12][%mdl 576] Discovered Attack} gxf6 {[%emt 0:00:07]} 14. Qxd6 {[%emt 0:00:06]} Nxe4 {[%emt 0:00:10]} 15. Qd5 {[%emt 0:00:06]} Ng5 {[%emt 0:00:25]} 16. f4 {[%emt 0:00:06]} Ne6 {[%emt 0:00:12]} 17. fxe5 {[%emt 0:00:10]} fxe5 {[%emt 0:00:10]} 18. Qxe5 {[%emt 0:00:09] Threatening mate with Bxe6.} b5 {[%emt 0:00:20]} 19. Bxe6 {[%emt 0:00:08][%mdl 64] Remove Defender} dxe6 {[%emt 0:00:10]} 20. Qg5+ {[%emt 0:00:06] Black got outplayed after the opening.   Weighted Error Value: White=0.00 (flawless) /Black=1.58} 1-0